[Event "*** SCC Grand Prix: Titled Tuesday Blitz"]
[Site "Chess.com"]
[Date "2020.06.23"]
[Round "1"]
[White "rugbyclub"]
[Black "Zq1"]
[Result "1/2-1/2"]
[WhiteElo "2127"]
[BlackElo "2506"]
[TimeControl "180+1"]
[EndTime "10:08:09 PDT"]
[Termination "Game drawn - insufficient material"]

1. c4 {[%clk 0:02:53.9]} 1... e6 {[%clk 0:02:58.8]} 2. Nc3 {[%clk 0:02:53.7]}
2... d5 {[%clk 0:02:58.9]} 3. d4 {[%clk 0:02:53.3]} 3... Be7 {[%clk 0:02:59]} 4.
cxd5 {[%clk 0:02:50.9]} 4... exd5 {[%clk 0:02:58.2]} 5. Bf4 {[%clk 0:02:51.5]}
5... Nf6 {[%clk 0:02:57.2]} 6. e3 {[%clk 0:02:51.3]} 6... O-O {[%clk 0:02:56.3]}
7. Bd3 {[%clk 0:02:50.9]} 7... c5 {[%clk 0:02:56.2]} 8. Nge2 {[%clk 0:02:46.3]}
8... Nc6 {[%clk 0:02:54.7]} 9. dxc5 {[%clk 0:02:34.4]} 9... Bxc5 {[%clk
0:02:52.9]} 10. O-O {[%clk 0:02:35]} 10... d4 {[%clk 0:02:49]} 11. Na4 {[%clk
0:02:31.8]} 11... Bd6 {[%clk 0:02:48]} 12. Bxd6 {[%clk 0:02:27.8]} 12... Qxd6
{[%clk 0:02:47.4]} 13. Nxd4 {[%clk 0:02:27.7]} 13... Nxd4 {[%clk 0:02:46.4]} 14.
exd4 {[%clk 0:02:27.6]} 14... Bg4 {[%clk 0:02:44.5]} 15. Be2 {[%clk 0:02:04]}
15... Bxe2 {[%clk 0:02:41.3]} 16. Qxe2 {[%clk 0:02:04.1]} 16... Qxd4 {[%clk
0:02:41.1]} 17. Nc3 {[%clk 0:02:03.3]} 17... Rfe8 {[%clk 0:02:39.3]} 18. Qf3
{[%clk 0:02:02.5]} 18... Ne4 {[%clk 0:02:27.5]} 19. Nxe4 {[%clk 0:01:56.4]}
19... Qxe4 {[%clk 0:02:26.8]} 20. Qxe4 {[%clk 0:01:54.6]} 20... Rxe4 {[%clk
0:02:26.8]} 21. Rfe1 {[%clk 0:01:54.1]} 21... Rxe1+ {[%clk 0:02:18.4]} 22. Rxe1
{[%clk 0:01:52.2]} 22... Kf8 {[%clk 0:02:17.7]} 23. Rc1 {[%clk 0:01:45.3]} 23...
Rd8 {[%clk 0:02:14.9]} 24. g3 {[%clk 0:01:41]} 24... Rd7 {[%clk 0:02:13.4]} 25.
Rc2 {[%clk 0:01:39.9]} 25... h5 {[%clk 0:02:12.9]} 26. Kg2 {[%clk 0:01:40.2]}
26... g6 {[%clk 0:02:12.2]} 27. h4 {[%clk 0:01:39.9]} 27... Ke7 {[%clk
0:02:12.2]} 28. Kf3 {[%clk 0:01:40]} 28... Ke6 {[%clk 0:02:12.3]} 29. Rc3 {[%clk
0:01:35.2]} 29... Ke5 {[%clk 0:02:10.3]} 30. Re3+ {[%clk 0:01:34.6]} 30... Kd4
{[%clk 0:02:01.8]} 31. Rb3 {[%clk 0:01:34]} 31... Re7 {[%clk 0:01:52.5]} 32. Kf4
{[%clk 0:01:31.1]} 32... Kc4 {[%clk 0:01:43.1]} 33. Rc3+ {[%clk 0:01:27.8]}
33... Kd4 {[%clk 0:01:40.7]} 34. Rb3 {[%clk 0:01:27.3]} 34... b6 {[%clk
0:01:40.9]} 35. a3 {[%clk 0:01:21]} 35... Kc4 {[%clk 0:01:35.4]} 36. Rc3+ {[%clk
0:01:18.8]} 36... Kd5 {[%clk 0:01:35.5]} 37. Rd3+ {[%clk 0:01:16.1]} 37... Kc5
{[%clk 0:01:31.5]} 38. Rc3+ {[%clk 0:01:15.5]} 38... Kd4 {[%clk 0:01:31.5]} 39.
Rb3 {[%clk 0:01:12.8]} 39... Re6 {[%clk 0:01:30]} 40. Kg5 {[%clk 0:01:05.3]}
40... Re5+ {[%clk 0:01:29.8]} 41. Kh6 {[%clk 0:01:01.2]} 41... Rf5 {[%clk
0:01:29.3]} 42. f4 {[%clk 0:01:00.8]} 42... Kc4 {[%clk 0:01:23.6]} 43. Rc3+
{[%clk 0:00:59.4]} 43... Kd4 {[%clk 0:01:22.7]} 44. Kg7 {[%clk 0:00:59.1]} 44...
a5 {[%clk 0:01:16.8]} 45. a4 {[%clk 0:00:56.8]} 45... Kd5 {[%clk 0:01:03.7]} 46.
Rc7 {[%clk 0:00:46.1]} 46... Ke4 {[%clk 0:00:52.6]} 47. Rxf7 {[%clk 0:00:43.6]}
47... Kf3 {[%clk 0:00:49.7]} 48. Kxg6 {[%clk 0:00:41.8]} 48... Rc5 {[%clk
0:00:35.7]} 49. f5 {[%clk 0:00:41.1]} 49... Kg4 {[%clk 0:00:31.7]} 50. Rf6
{[%clk 0:00:27.9]} 50... b5 {[%clk 0:00:27.9]} 51. axb5 {[%clk 0:00:27.5]} 51...
Rxb5 {[%clk 0:00:28]} 52. Kh6 {[%clk 0:00:25.2]} 52... Rxb2 {[%clk 0:00:24.3]}
53. Ra6 {[%clk 0:00:24.5]} 53... Kxg3 {[%clk 0:00:13.2]} 54. f6 {[%clk
0:00:21.4]} 54... Rf2 {[%clk 0:00:11.8]} 55. Kg7 {[%clk 0:00:20.6]} 55... Kxh4
{[%clk 0:00:11.5]} 56. Rxa5 {[%clk 0:00:20.4]} 56... Kg4 {[%clk 0:00:10.3]} 57.
f7 {[%clk 0:00:20.5]} 57... h4 {[%clk 0:00:10]} 58. f8=Q {[%clk 0:00:20.6]}
58... Rxf8 {[%clk 0:00:09.1]} 59. Kxf8 {[%clk 0:00:21.3]} 59... h3 {[%clk
0:00:09.2]} 60. Kg7 {[%clk 0:00:20.5]} 60... Kg3 {[%clk 0:00:09.4]} 61. Kf6
{[%clk 0:00:19.5]} 61... h2 {[%clk 0:00:09.4]} 62. Ra1 {[%clk 0:00:18.6]} 62...
Kg2 {[%clk 0:00:09.5]} 63. Ra2+ {[%clk 0:00:16]} 63... Kg3 {[%clk 0:00:09.4]}
64. Ra1 {[%clk 0:00:15.6]} 64... Kg2 {[%clk 0:00:09.5]} 65. Kg5 {[%clk
0:00:15.8]} 65... h1=R {[%clk 0:00:08.1]} 66. Rxh1 {[%clk 0:00:16.1]} 66... Kxh1
{[%clk 0:00:07.8]} 1/2-1/2

[Event "*** SCC Grand Prix: Titled Tuesday Blitz"]
[Site "Chess.com"]
[Date "2020.06.23"]
[Round "1"]
[White "crossingthestreet"]
[Black "Igrok3069"]
[Result "0-1"]
[WhiteElo "2385"]
[BlackElo "2736"]
[TimeControl "180+1"]
[EndTime "10:08:10 PDT"]
[Termination "Igrok3069 won by resignation"]

1. c4 {[%clk 0:02:56.3]} 1... c6 {[%clk 0:02:59.6]} 2. Nc3 {[%clk 0:02:56.2]}
2... d5 {[%clk 0:03:00.5]} 3. e3 {[%clk 0:02:56.4]} 3... Nf6 {[%clk 0:02:59.9]}
4. Nf3 {[%clk 0:02:56.5]} 4... a6 {[%clk 0:02:58.5]} 5. Qc2 {[%clk 0:02:55.1]}
5... g6 {[%clk 0:02:53.7]} 6. d4 {[%clk 0:02:49]} 6... Bg7 {[%clk 0:02:48.8]} 7.
Bd3 {[%clk 0:02:48.4]} 7... O-O {[%clk 0:02:35.6]} 8. O-O {[%clk 0:02:47.6]}
8... dxc4 {[%clk 0:02:33.9]} 9. Bxc4 {[%clk 0:02:46.9]} 9... Bf5 {[%clk
0:02:33.2]} 10. Qe2 {[%clk 0:02:39.8]} 10... b5 {[%clk 0:02:10.1]} 11. Bb3
{[%clk 0:02:38.9]} 11... c5 {[%clk 0:02:07.5]} 12. a3 {[%clk 0:02:08.8]} 12...
c4 {[%clk 0:02:05.1]} 13. Bc2 {[%clk 0:02:03.8]} 13... Bxc2 {[%clk 0:02:02.4]}
14. Qxc2 {[%clk 0:02:04.7]} 14... Nc6 {[%clk 0:02:02.1]} 15. Rd1 {[%clk
0:02:00.9]} 15... Na5 {[%clk 0:01:58.1]} 16. e4 {[%clk 0:01:56.6]} 16... Nb3
{[%clk 0:01:57.2]} 17. Rb1 {[%clk 0:01:56.8]} 17... Nxc1 {[%clk 0:01:46.4]} 18.
Rbxc1 {[%clk 0:01:56.2]} 18... Nd7 {[%clk 0:01:42]} 19. e5 {[%clk 0:01:48.6]}
19... Bh6 {[%clk 0:01:26.3]} 20. Rb1 {[%clk 0:01:42.4]} 20... Rc8 {[%clk
0:01:25.1]} 21. h4 {[%clk 0:01:31.9]} 21... Qb6 {[%clk 0:01:07.3]} 22. Nd5
{[%clk 0:01:22.4]} 22... Qe6 {[%clk 0:01:05.9]} 23. Nc3 {[%clk 0:01:10.2]} 23...
Rfd8 {[%clk 0:01:01.2]} 24. Qe4 {[%clk 0:01:08]} 24... Nf8 {[%clk 0:00:48.1]}
25. d5 {[%clk 0:00:53.3]} 25... Qf5 {[%clk 0:00:47.2]} 26. Qxf5 {[%clk 0:00:46]}
26... gxf5 {[%clk 0:00:46.8]} 27. Nd4 {[%clk 0:00:46.5]} 27... e6 {[%clk
0:00:44.5]} 28. Nc6 {[%clk 0:00:17.7]} 28... Re8 {[%clk 0:00:43.9]} 29. Nb4
{[%clk 0:00:08.7]} 29... Ra8 {[%clk 0:00:41.3]} 30. g3 {[%clk 0:00:05.9]} 30...
Ng6 {[%clk 0:00:34.6]} 31. f4 {[%clk 0:00:03.5]} 31... Bf8 {[%clk 0:00:34.7]}
32. d6 {[%clk 0:00:03.2]} 32... Red8 {[%clk 0:00:28.2]} 33. h5 {[%clk
0:00:02.4]} 33... Nh8 {[%clk 0:00:27.6]} 34. Kf2 {[%clk 0:00:03.3]} 34... f6
{[%clk 0:00:27.6]} 35. Nc6 {[%clk 0:00:03.3]} 35... Rd7 {[%clk 0:00:27.5]} 36.
Nd4 {[%clk 0:00:04.2]} 36... fxe5 {[%clk 0:00:26.4]} 37. fxe5 {[%clk 0:00:05.1]}
37... Nf7 {[%clk 0:00:26]} 38. Re1 {[%clk 0:00:05.7]} 38... Bg7 {[%clk
0:00:25.6]} 39. Kf3 {[%clk 0:00:06]} 39... Nxe5+ {[%clk 0:00:25]} 40. Kf4 {[%clk
0:00:06.2]} 40... Nd3+ {[%clk 0:00:24.8]} 41. Ke3 {[%clk 0:00:04.8]} 41... Nxe1
{[%clk 0:00:24.2]} 42. Rxe1 {[%clk 0:00:05.7]} 42... Rxd6 {[%clk 0:00:23.9]} 43.
Nf3 {[%clk 0:00:06.1]} 43... Rad8 {[%clk 0:00:23.5]} 44. Kf2 {[%clk 0:00:06.6]}
44... e5 {[%clk 0:00:23.1]} 45. Nxe5 {[%clk 0:00:06]} 45... Rd2+ {[%clk
0:00:22.9]} 46. Kf3 {[%clk 0:00:06.2]} 46... Rxb2 {[%clk 0:00:22.9]} 47. Kf4
{[%clk 0:00:06.5]} 47... Rc2 {[%clk 0:00:20.6]} 48. Ne2 {[%clk 0:00:05.1]} 48...
Re8 {[%clk 0:00:19.4]} 49. Nd4 {[%clk 0:00:03.8]} 49... Rxe5 {[%clk 0:00:17.8]}
50. Rxe5 {[%clk 0:00:04.7]} 50... Bxe5+ {[%clk 0:00:17.3]} 51. Kxe5 {[%clk
0:00:05.6]} 51... Ra2 {[%clk 0:00:16.9]} 52. Kxf5 {[%clk 0:00:05]} 52... Rxa3
{[%clk 0:00:17.2]} 53. g4 {[%clk 0:00:04.9]} 53... Rd3 {[%clk 0:00:17.2]} 54.
Ke5 {[%clk 0:00:05]} 54... c3 {[%clk 0:00:17]} 55. g5 {[%clk 0:00:05.5]} 55...
Rxd4 {[%clk 0:00:17]} 56. Kxd4 {[%clk 0:00:05.2]} 56... c2 {[%clk 0:00:17.2]}
57. Ke5 {[%clk 0:00:05.5]} 57... c1=Q {[%clk 0:00:17.8]} 58. Kf6 {[%clk
0:00:05.7]} 58... Qc3+ {[%clk 0:00:17.4]} 59. Kf5 {[%clk 0:00:05.5]} 59... Qh3+
{[%clk 0:00:17.2]} 60. Kf4 {[%clk 0:00:04.5]} 60... Qxh5 {[%clk 0:00:17.1]} 61.
g6 {[%clk 0:00:05.1]} 61... Qxg6 {[%clk 0:00:16.9]} 0-1

[Event "*** SCC Grand Prix: Titled Tuesday Blitz"]
[Site "Chess.com"]
[Date "2020.06.23"]
[Round "1"]
[White "theblitzchamp"]
[Black "albano87"]
[Result "1-0"]
[WhiteElo "2652"]
[BlackElo "2328"]
[TimeControl "180+1"]
[EndTime "10:08:10 PDT"]
[Termination "theblitzchamp won on time"]

1. d4 {[%clk 0:02:59.2]} 1... d5 {[%clk 0:02:37.2]} 2. Bf4 {[%clk 0:03:00.1]}
2... e6 {[%clk 0:02:34.3]} 3. e3 {[%clk 0:02:58.6]} 3... Nf6 {[%clk 0:02:35.2]}
4. Nf3 {[%clk 0:02:57.7]} 4... Bd6 {[%clk 0:01:50.5]} 5. Nbd2 {[%clk 0:02:57]}
5... O-O {[%clk 0:01:49.3]} 6. c3 {[%clk 0:02:53.2]} 6... c5 {[%clk 0:01:26.1]}
7. Bg3 {[%clk 0:02:52.1]} 7... b6 {[%clk 0:01:22.9]} 8. Bd3 {[%clk 0:02:46.4]}
8... Bb7 {[%clk 0:01:17.6]} 9. Qe2 {[%clk 0:02:45.2]} 9... Bxg3 {[%clk
0:01:11.7]} 10. hxg3 {[%clk 0:02:44.6]} 10... Nbd7 {[%clk 0:01:12.6]} 11. Rd1
{[%clk 0:02:39.5]} 11... h6 {[%clk 0:01:07]} 12. O-O {[%clk 0:02:33.3]} 12...
Ng4 {[%clk 0:00:57.8]} 13. e4 {[%clk 0:02:30.2]} 13... cxd4 {[%clk 0:00:49.5]}
14. Nxd4 {[%clk 0:02:24]} 14... dxe4 {[%clk 0:00:49.4]} 15. Nxe4 {[%clk
0:02:19.5]} 15... Ndf6 {[%clk 0:00:41.7]} 16. Bb1 {[%clk 0:01:40.4]} 16... Qe7
{[%clk 0:00:35.1]} 17. Rfe1 {[%clk 0:01:21.3]} 17... Rad8 {[%clk 0:00:31.1]} 18.
f3 {[%clk 0:00:59.7]} 18... Nxe4 {[%clk 0:00:27.3]} 19. Bxe4 {[%clk 0:00:58.7]}
19... Bxe4 {[%clk 0:00:26.9]} 20. Qxe4 {[%clk 0:00:58.2]} 20... Nf6 {[%clk
0:00:27.8]} 21. Nc6 {[%clk 0:00:58]} 21... Qc5+ {[%clk 0:00:11.9]} 22. Kh2
{[%clk 0:00:19.6]} 22... Nxe4 {[%clk 0:00:10.7]} 23. Nxd8 {[%clk 0:00:19.9]}
23... Nf6 {[%clk 0:00:10.3]} 24. g4 {[%clk 0:00:19.8]} 24... Qg5 {[%clk
0:00:09.9]} 25. Nc6 {[%clk 0:00:19.5]} 25... Qh4+ {[%clk 0:00:09.7]} 26. Kg1
{[%clk 0:00:19.5]} 26... h5 {[%clk 0:00:10.3]} 27. gxh5 {[%clk 0:00:19.1]} 27...
Nxh5 {[%clk 0:00:08.5]} 28. Re4 {[%clk 0:00:19.4]} 28... Qf6 {[%clk 0:00:05.4]}
29. Rdd4 {[%clk 0:00:18.9]} 29... g6 {[%clk 0:00:05.6]} 30. Rg4 {[%clk
0:00:18.8]} 30... Ng7 {[%clk 0:00:05.2]} 31. Nb4 {[%clk 0:00:18.9]} 31... Re8
{[%clk 0:00:05.1]} 32. Rd1 {[%clk 0:00:19.2]} 32... e5 {[%clk 0:00:05.1]} 33.
Re4 {[%clk 0:00:19.5]} 33... Qe6 {[%clk 0:00:04.5]} 34. Nd5 {[%clk 0:00:19]}
34... f6 {[%clk 0:00:05.1]} 35. c4 {[%clk 0:00:19.3]} 35... Qf7 {[%clk
0:00:04.9]} 36. Re2 {[%clk 0:00:19.2]} 36... Rd8 {[%clk 0:00:05.5]} 37. Red2
{[%clk 0:00:19.4]} 37... Ne6 {[%clk 0:00:05.7]} 38. b3 {[%clk 0:00:19]} 38...
Kg7 {[%clk 0:00:04.8]} 39. Re1 {[%clk 0:00:18.8]} 39... Rd7 {[%clk 0:00:05.3]}
40. Rde2 {[%clk 0:00:18.8]} 40... Qf8 {[%clk 0:00:05.8]} 41. Re4 {[%clk
0:00:18.8]} 41... Qc5+ {[%clk 0:00:06.3]} 42. Kf1 {[%clk 0:00:18.8]} 42... Nf4
{[%clk 0:00:06.4]} 43. Ne3 {[%clk 0:00:15.7]} 43... Nd3 {[%clk 0:00:05]} 44. Re2
{[%clk 0:00:15.8]} 44... f5 {[%clk 0:00:04.9]} 45. Rh4 {[%clk 0:00:15.9]} 45...
Kf6 {[%clk 0:00:04.7]} 46. g4 {[%clk 0:00:15.7]} 46... f4 {[%clk 0:00:02.3]} 47.
g5+ {[%clk 0:00:15.2]} 47... Kxg5 {[%clk 0:00:03.2]} 48. Rg4+ {[%clk 0:00:15.6]}
48... Kf6 {[%clk 0:00:02.5]} 49. Ng2 {[%clk 0:00:16.4]} 49... Rd4 {[%clk
0:00:01.8]} 50. Nh4 {[%clk 0:00:16.6]} 50... Nb2 {[%clk 0:00:01.8]} 51. Rxg6+
{[%clk 0:00:16.9]} 51... Kf7 {[%clk 0:00:02.1]} 52. Rg5 {[%clk 0:00:16.7]} 52...
Rd1+ {[%clk 0:00:01.7]} 53. Re1 {[%clk 0:00:16.8]} 53... Qg1+ {[%clk 0:00:02.2]}
54. Rxg1 {[%clk 0:00:16.4]} 54... Rxe1+ {[%clk 0:00:02]} 55. Kxe1 {[%clk
0:00:17.3]} 1-0

[Event "*** SCC Grand Prix: Titled Tuesday Blitz"]
[Site "Chess.com"]
[Date "2020.06.23"]
[Round "1"]
[White "Ovsiannikov_Maxim"]
[Black "sergeikim"]
[Result "0-1"]
[WhiteElo "2121"]
[BlackElo "2518"]
[TimeControl "180+1"]
[EndTime "10:08:10 PDT"]
[Termination "sergeikim won by resignation"]

1. d4 {[%clk 0:02:57.5]} 1... Nf6 {[%clk 0:02:59.1]} 2. Bg5 {[%clk 0:02:55.9]}
2... g6 {[%clk 0:02:59.3]} 3. Bxf6 {[%clk 0:02:55.2]} 3... exf6 {[%clk
0:02:59.9]} 4. h4 {[%clk 0:02:55.9]} 4... h5 {[%clk 0:02:59.8]} 5. Nh3 {[%clk
0:02:55.7]} 5... Bh6 {[%clk 0:02:59.7]} 6. Nc3 {[%clk 0:02:52.8]} 6... d6 {[%clk
0:02:59.7]} 7. g3 {[%clk 0:02:52.3]} 7... f5 {[%clk 0:02:57.3]} 8. Bg2 {[%clk
0:02:49.5]} 8... Nd7 {[%clk 0:02:57]} 9. e3 {[%clk 0:02:49.8]} 9... Nf6 {[%clk
0:02:56.6]} 10. Nf4 {[%clk 0:02:42.5]} 10... c6 {[%clk 0:02:56]} 11. Qd3 {[%clk
0:02:41.1]} 11... Qe7 {[%clk 0:02:55.8]} 12. O-O-O {[%clk 0:02:39.4]} 12... Ng4
{[%clk 0:02:55.1]} 13. Qd2 {[%clk 0:02:34.4]} 13... O-O {[%clk 0:02:51.2]} 14.
Rde1 {[%clk 0:02:32.7]} 14... Bd7 {[%clk 0:02:47.9]} 15. f3 {[%clk 0:02:33.1]}
15... Nf6 {[%clk 0:02:46.9]} 16. Kb1 {[%clk 0:02:30.8]} 16... Rfe8 {[%clk
0:02:45.7]} 17. Re2 {[%clk 0:02:27.7]} 17... b5 {[%clk 0:02:43.4]} 18. Rhe1
{[%clk 0:02:27.2]} 18... b4 {[%clk 0:02:37.2]} 19. Nd1 {[%clk 0:02:27.1]} 19...
a5 {[%clk 0:02:35.6]} 20. Qd3 {[%clk 0:02:21.2]} 20... Bc8 {[%clk 0:02:33]} 21.
Rf2 {[%clk 0:02:02.8]} 21... Ba6 {[%clk 0:02:26.9]} 22. Qd2 {[%clk 0:02:02.6]}
22... Bxf4 {[%clk 0:01:51.8]} 23. gxf4 {[%clk 0:02:01.4]} 23... Nd5 {[%clk
0:01:51.9]} 24. e4 {[%clk 0:01:54.4]} 24... Nb6 {[%clk 0:01:51]} 25. Bf1 {[%clk
0:01:53.3]} 25... Bxf1 {[%clk 0:01:30.2]} 26. Rfxf1 {[%clk 0:01:51.2]} 26... Qf6
{[%clk 0:01:13.7]} 27. e5 {[%clk 0:01:41.1]} 27... dxe5 {[%clk 0:01:08.8]} 28.
fxe5 {[%clk 0:01:40.3]} 28... Qd8 {[%clk 0:00:57.7]} 29. Rg1 {[%clk 0:01:36]}
29... Kh7 {[%clk 0:00:56.6]} 30. Rg5 {[%clk 0:01:29.3]} 30... a4 {[%clk
0:00:50.3]} 31. Reg1 {[%clk 0:01:29.5]} 31... Re6 {[%clk 0:00:27.2]} 32. Ne3
{[%clk 0:01:28.5]} 32... a3 {[%clk 0:00:25]} 33. Nxf5 {[%clk 0:01:25.7]} 33...
Nc4 {[%clk 0:00:22.5]} 34. Qf4 {[%clk 0:01:22.3]} 34... axb2 {[%clk 0:00:20.9]}
35. Nd6 {[%clk 0:00:30]} 35... Nxd6 {[%clk 0:00:18.1]} 36. exd6 {[%clk 0:00:30]}
36... Ra7 {[%clk 0:00:15.5]} 37. Rxh5+ {[%clk 0:00:21.2]} 37... gxh5 {[%clk
0:00:14.5]} 38. Qf5+ {[%clk 0:00:21.6]} 38... Rg6 {[%clk 0:00:14.1]} 39. Qxh5+
{[%clk 0:00:20.5]} 39... Kg7 {[%clk 0:00:14.3]} 40. Qe5+ {[%clk 0:00:21.1]}
40... Kg8 {[%clk 0:00:13.2]} 41. Rxg6+ {[%clk 0:00:18.4]} 41... fxg6 {[%clk
0:00:13.2]} 42. Qe6+ {[%clk 0:00:18.9]} 42... Kg7 {[%clk 0:00:13.2]} 43. Qe5+
{[%clk 0:00:18.7]} 43... Qf6 {[%clk 0:00:12.8]} 44. Qc5 {[%clk 0:00:19.2]} 44...
Rd7 {[%clk 0:00:11.4]} 45. Qxc6 {[%clk 0:00:17.2]} 45... Qxd6 {[%clk 0:00:11.1]}
46. Qe4 {[%clk 0:00:16.8]} 46... Qxd4 {[%clk 0:00:10.3]} 47. Qe2 {[%clk
0:00:15.5]} 47... Qd1+ {[%clk 0:00:09.9]} 48. Qxd1 {[%clk 0:00:16]} 48... Rxd1+
{[%clk 0:00:09.8]} 49. Kxb2 {[%clk 0:00:16.9]} 49... Rh1 {[%clk 0:00:10.2]} 50.
h5 {[%clk 0:00:17.8]} 50... Rxh5 {[%clk 0:00:10.1]} 51. Kb3 {[%clk 0:00:17.7]}
51... Rh4 {[%clk 0:00:10]} 52. f4 {[%clk 0:00:16.7]} 52... Kf6 {[%clk
0:00:09.9]} 53. Kxb4 {[%clk 0:00:17]} 53... Rxf4+ {[%clk 0:00:10.4]} 54. c4
{[%clk 0:00:16.9]} 54... Ke6 {[%clk 0:00:11]} 55. a4 {[%clk 0:00:17.8]} 55...
Kd7 {[%clk 0:00:11.5]} 56. a5 {[%clk 0:00:18.4]} 56... Kc7 {[%clk 0:00:12.1]}
57. Kc5 {[%clk 0:00:19]} 57... Kb7 {[%clk 0:00:12.7]} 58. Kd5 {[%clk 0:00:19.4]}
58... Ka6 {[%clk 0:00:13.2]} 59. c5 {[%clk 0:00:19.1]} 59... Kxa5 {[%clk
0:00:13.2]} 60. Ke5 {[%clk 0:00:19.7]} 60... Rf8 {[%clk 0:00:12.9]} 61. c6
{[%clk 0:00:19.5]} 61... Rc8 {[%clk 0:00:13.2]} 62. c7 {[%clk 0:00:20.4]} 62...
Kb6 {[%clk 0:00:13.2]} 63. Kf6 {[%clk 0:00:21.3]} 63... Rxc7 {[%clk 0:00:13.8]}
0-1

[Event "*** SCC Grand Prix: Titled Tuesday Blitz"]
[Site "Chess.com"]
[Date "2020.06.23"]
[Round "1"]
[White "ARTHURMOTIVATOR"]
[Black "tsvet2005"]
[Result "1/2-1/2"]
[WhiteElo "2346"]
[BlackElo "2653"]
[TimeControl "180+1"]
[EndTime "10:08:12 PDT"]
[Termination "Game drawn by agreement"]

1. e4 {[%clk 0:03:00]} 1... c5 {[%clk 0:02:59.4]} 2. b3 {[%clk 0:02:57.4]} 2...
g6 {[%clk 0:02:54.4]} 3. Bb2 {[%clk 0:02:55.3]} 3... Nf6 {[%clk 0:02:54.8]} 4.
e5 {[%clk 0:02:51.5]} 4... Nd5 {[%clk 0:02:54.6]} 5. d4 {[%clk 0:02:48.4]} 5...
Bg7 {[%clk 0:02:43.3]} 6. Nf3 {[%clk 0:02:36.1]} 6... cxd4 {[%clk 0:02:40.6]} 7.
Qxd4 {[%clk 0:02:30.3]} 7... Nc7 {[%clk 0:02:40]} 8. Nbd2 {[%clk 0:01:59.7]}
8... Nc6 {[%clk 0:02:38.1]} 9. Qh4 {[%clk 0:01:53.4]} 9... d6 {[%clk 0:02:34.2]}
10. O-O-O {[%clk 0:01:50.7]} 10... d5 {[%clk 0:02:12.8]} 11. Kb1 {[%clk
0:01:43.6]} 11... O-O {[%clk 0:02:04.2]} 12. Bd3 {[%clk 0:01:11.2]} 12... Ne6
{[%clk 0:01:49]} 13. Ng5 {[%clk 0:01:04.9]} 13... Nxg5 {[%clk 0:01:40.7]} 14.
Qxg5 {[%clk 0:01:05.8]} 14... h6 {[%clk 0:01:38.3]} 15. Qg3 {[%clk 0:01:03.2]}
15... Nb4 {[%clk 0:01:37.3]} 16. Nf3 {[%clk 0:00:54.2]} 16... Nxd3 {[%clk
0:01:35.9]} 17. Rxd3 {[%clk 0:00:54.1]} 17... Bf5 {[%clk 0:01:36.2]} 18. Rd2
{[%clk 0:00:52.6]} 18... Rc8 {[%clk 0:01:31]} 19. Nd4 {[%clk 0:00:50.2]} 19...
Qd7 {[%clk 0:01:31.1]} 20. Re1 {[%clk 0:00:44.7]} 20... b5 {[%clk 0:01:21.7]}
21. e6 {[%clk 0:00:34.3]} 21... fxe6 {[%clk 0:00:39.3]} 22. Nxf5 {[%clk
0:00:32.2]} 22... Rxf5 {[%clk 0:00:40.2]} 23. Qxg6 {[%clk 0:00:29.3]} 23... Rg5
{[%clk 0:00:40.5]} 24. Qxe6+ {[%clk 0:00:29]} 24... Qxe6 {[%clk 0:00:41.4]} 25.
Rxe6 {[%clk 0:00:29.1]} 25... Rxg2 {[%clk 0:00:37.8]} 26. Bxg7 {[%clk
0:00:25.2]} 26... Kxg7 {[%clk 0:00:30.2]} 27. Rxe7+ {[%clk 0:00:24.7]} 27... Kf6
{[%clk 0:00:30.6]} 28. Rxa7 {[%clk 0:00:24.2]} 28... Rxh2 {[%clk 0:00:31.1]} 29.
Ra5 {[%clk 0:00:20.8]} 29... Rc5 {[%clk 0:00:27.9]} 30. a4 {[%clk 0:00:18.4]}
30... h5 {[%clk 0:00:26.6]} 31. Rxb5 {[%clk 0:00:17.2]} 31... Rxb5 {[%clk
0:00:25]} 32. axb5 {[%clk 0:00:17.4]} 32... Ke6 {[%clk 0:00:25.7]} 33. b6 {[%clk
0:00:17.5]} 33... Rg2 {[%clk 0:00:23.6]} 34. b7 {[%clk 0:00:14.5]} 34... Rg8
{[%clk 0:00:23.1]} 35. Rd4 {[%clk 0:00:14.5]} 35... Rb8 {[%clk 0:00:17.9]} 36.
Rh4 {[%clk 0:00:14.3]} 36... Rxb7 {[%clk 0:00:18.5]} 37. Rxh5 {[%clk 0:00:14.4]}
37... Rf7 {[%clk 0:00:19.4]} 38. Rh6+ {[%clk 0:00:12.7]} 38... Ke5 {[%clk
0:00:19.5]} 39. Rh2 {[%clk 0:00:11.9]} 39... Ke4 {[%clk 0:00:19.8]} 40. Kb2
{[%clk 0:00:11.9]} 40... Kd4 {[%clk 0:00:18.4]} 41. Rh4+ {[%clk 0:00:11.4]}
41... Kc5 {[%clk 0:00:19]} 42. f4 {[%clk 0:00:11.3]} 42... Rf5 {[%clk
0:00:19.3]} 43. Rg4 {[%clk 0:00:10.9]} 43... Rf7 {[%clk 0:00:19.2]} 44. Kc3
{[%clk 0:00:11]} 44... Rh7 {[%clk 0:00:19.4]} 45. Kb2 {[%clk 0:00:10]} 45... Rh3
{[%clk 0:00:18.4]} 46. f5 {[%clk 0:00:09.1]} 46... Rf3 {[%clk 0:00:18.9]} 47.
Rg5 {[%clk 0:00:09.2]} 47... Rf2 {[%clk 0:00:19.5]} 48. Kc3 {[%clk 0:00:08.7]}
48... Rf3+ {[%clk 0:00:19.8]} 49. Kd2 {[%clk 0:00:08.5]} 49... Rf2+ {[%clk
0:00:20.7]} 50. Kd3 {[%clk 0:00:08.8]} 50... Kd6 {[%clk 0:00:09.4]} 51. c3
{[%clk 0:00:05.7]} 51... Rf3+ {[%clk 0:00:09.2]} 52. Kd2 {[%clk 0:00:04.7]}
52... Rf2+ {[%clk 0:00:09.4]} 53. Ke3 {[%clk 0:00:04.7]} 53... Rc2 {[%clk
0:00:09.8]} 54. Kd3 {[%clk 0:00:04.8]} 54... Rf2 {[%clk 0:00:10.3]} 55. b4
{[%clk 0:00:04.6]} 55... Ke5 {[%clk 0:00:10.4]} 56. f6+ {[%clk 0:00:04]} 1/2-1/2